bitfinex/quotes_ETHUSD_20220123
["timestamp","ask_amount","ask_price","bid_price","bid_amount"]
[1642968332545,0.01268914,2391.5,2390.5,1.34638]
[1642968332746,0.01268914,2391.5,2390.6,0.3]
[1642968332945,0.00368914,2391.5,2390.6,0.3097121]
[1642968333149,1.42888147,2391.3,2390.6,0.1797]
[1642968333351,1.42888147,2391.3,2390.5,26.55106144]
[1642968333547,1.42888147,2391.3,2390.5,24.1]
[1642968333746,1.42888147,2391.3,2390.4,1.0464027]
[1642968333949,0.1671,2391.8,2390.5,3.88750717]
[1642968334154,0.67621793,2391.7,2390.6,0.1671]
[1642968334385,0.67621793,2391.7,2390.6,0.4671]
[1642968334386,0.0033325,2391.6,2390.6,0.4671]
[1642968334588,0.0033325,2391.6,2390.1,2.2917421]
[1642968334589,0.00958842,2391.3,2390.3,0.1671]
[1642968334785,0.00958842,2391.3,2390.2,0.1673]
[1642968334989,0.00997193,2390.8,2390.1,0.1673]
[1642968335290,0.05141042,2390.7,2389.3,1.21417]
[1642968335489,1.26227053,2389.6,2388.9,6.60252146]
[1642968335691,1.26227053,2389.6,2388.8,0.1673]
[1642968335886,1.26227053,2389.6,2388.7,1.6413566]
[1642968336087,1.26227053,2389.6,2388.7,1.4740566]
[1642968336289,1.26227053,2389.6,2388.4,0.1673]
[1642968336491,0.06486059,2389.5,2388.2,0.1673]
[1642968336691,1.33010799,2388.5,2388.2,0.1673]
[1642968336887,1.33010799,2388.5,2388.1,0.1673]
[1642968337694,0.1673,2389.5,2388.1,0.1673]
[1642968337891,0.80806907,2389.4,2388.2,24.1]
[1642968338144,0.1673,2389.9,2388.4,24.1]
[1642968338350,0.17000504,2390.0,2388.6,0.01240385]
[1642968338547,0.01062076,2390.4,2388.7,0.50672398]
[1642968338548,0.00270504,2390.4,2388.7,0.50672398]
[1642968338744,1.21005171,2389.8,2388.7,0.50672398]
[1642968338943,1.21005171,2389.8,2388.7,0.61566747]
[1642968339143,0.75123397,2390.2,2388.8,0.07394216]
[1642968339349,1.34937067,2390.5,2388.8,24.17394216]
[1642968339546,1.18207067,2390.5,2388.9,3.0939017]
[1642968339745,1.34937067,2390.5,2388.9,3.16784386]
[1642968339944,1.34937067,2390.5,2389.0,0.37394216]
[1642968340145,1.31881166,2389.9,2389.1,0.1673]
[1642968340344,1.31881166,2389.9,2389.1,0.24124216]
[1642968341151,1.34937067,2390.5,2389.1,3.11283892]
[1642968341349,0.01285557,2390.8,2389.3,1.0469]
[1642968341350,0.1673,2390.7,2389.3,1.0469]
[1642968341550,0.1673,2390.7,2389.4,3.36862753]
[1642968341799,0.86271903,2390.8,2389.4,0.84124216]
[1642968341995,0.86271903,2390.8,2389.5,1.07394216]
[1642968342190,1.27217124,2390.3,2389.5,1.07394216]
[1642968342392,1.27217124,2390.3,2389.6,0.07394216]
[1642968342792,0.01015053,2390.8,2389.6,0.07394216]
[1642968343199,0.00270504,2391.4,2389.8,24.1]
[1642968343398,0.00270504,2391.4,2389.9,4.0792]
[1642968343601,0.00270504,2391.4,2390.0,1.0]
[1642968343800,0.1673,2391.4,2390.1,0.1673]
[1642968344004,0.01261812,2391.5,2390.1,0.1673]
[1642968344199,0.01261812,2391.5,2390.1,0.73624216]
[1642968344401,0.01261812,2391.5,2390.1,0.9623]
[1642968344607,0.01261812,2391.5,2389.7,0.07394216]
[1642968344608,0.01205012,2390.9,2389.7,0.07394216]
[1642968344803,0.01205012,2390.9,2389.3,4.0578]
[1642968345002,0.01205012,2390.9,2389.4,7.6]
[1642968345003,0.1673,2390.8,2389.4,7.6]
[1642968345204,0.0123786,2390.9,2389.5,0.03729]
[1642968345402,1.16972807,2389.9,2389.5,0.03729]
[1642968345647,1.16972807,2389.9,2389.3,0.1673]
[1642968345945,1.16972807,2389.9,2389.0,0.03729]
[1642968346743,1.16972807,2389.9,2388.8,0.03729]
[1642968347345,0.01258543,2390.3,2388.9,1.04697]
[1642968347552,0.01258543,2390.3,2389.0,0.03729]
[1642968347752,0.00270504,2390.6,2389.1,0.495]
[1642968347953,0.00270504,2390.6,2389.2,27.7336]
[1642968348153,0.1673,2390.8,2389.2,5.1453]
[1642968348352,1.47091757,2390.3,2389.3,1.0]
[1642968348551,1.47091757,2390.3,2389.3,1.07394216]
[1642968348749,0.1673,2390.8,2389.4,0.11123216]
[1642968348954,4.93810504,2391.0,2389.7,2.0932894]
[1642968348955,0.00270504,2391.0,2389.7,2.0932894]
[1642968349151,2.41645146,2391.3,2389.8,0.20459]
[1642968349391,2.24915146,2391.3,2389.8,0.20459]
[1642968349799,2.14779784,2389.9,2389.4,0.07394216]
[1642968349998,2.14779784,2389.9,2388.9,2.09387]
[1642968350193,2.14779784,2389.9,2389.0,0.03729]
[1642968350992,2.14779784,2389.9,2389.0,1.2516046]
[1642968351197,0.91134102,2389.1,2389.0,0.20459]
[1642968351408,0.91134102,2389.1,2388.8,0.03729]
[1642968351596,0.91134102,2389.1,2388.6,7.43]
[1642968351993,0.91134102,2389.1,2388.7,0.03729]
[1642968352195,2.21049103,2389.1,2388.7,0.03729]
[1642968353249,2.21049103,2389.1,2388.6,7.43]
[1642968353450,3.12969103,2389.1,2388.6,7.43]
[1642968353653,3.29699103,2389.1,2388.6,7.43]
[1642968354252,1.37093449,2388.7,2388.6,7.43]
[1642968354649,1.37093449,2388.7,2388.3,0.1673]
[1642968355056,0.91134102,2389.1,2388.3,0.1673]
[1642968355253,0.1673,2389.5,2388.1,0.1673]
[1642968355454,0.1673,2389.8,2388.3,1.26586854]
[1642968355652,0.00270504,2390.0,2388.4,0.7673]
[1642968356155,1.1673,2390.1,2388.5,0.07378794]
[1642968356352,0.86200443,2389.5,2388.6,0.1673]
[1642968356553,0.86200443,2389.5,2388.5,0.24108794]
[1642968357190,1.1673,2389.9,2388.5,0.24108794]
[1642968357392,0.1673,2389.9,2388.5,1.13068794]
[1642968357599,1.08530712,2389.8,2388.6,5.41954126]
[1642968357793,1.08530712,2389.8,2388.6,3.3860898]
[1642968357995,1.08530712,2389.8,2388.7,1.37363497]
[1642968358194,1.08530712,2389.8,2388.9,0.04370565]
[1642968358393,1.08530712,2389.8,2389.1,0.03124139]
[1642968358593,1.08530712,2389.8,2389.1,1.09954139]
[1642968358998,0.01266941,2390.2,2389.3,0.03470176]
[1642968359195,3.1894,2390.7,2389.3,0.20200176]
[1642968359396,0.00270504,2390.8,2389.3,24.37563673]
[1642968359595,0.17000504,2390.8,2389.5,0.00672881]
[1642968359796,0.1673,2390.8,2389.5,0.17402881]
[1642968359996,1.37308315,2390.4,2389.5,0.17402881]
[1642968360200,1.37308315,2390.4,2389.5,0.1673]
[1642968360646,1.37308315,2390.4,2389.5,3.03229055]
[1642968360847,1.37308315,2390.4,2389.5,3.13074311]
[1642968361049,1.37308315,2390.4,2389.6,1.0]
[1642968361249,0.75038242,2390.8,2389.7,2.7809521]
[1642968361250,0.1673,2390.8,2389.7,2.7809521]
[1642968361451,0.27639994,2390.9,2389.7,3.0809521]
[1642968361647,0.44369994,2390.9,2389.7,0.3]
[1642968361846,0.44369994,2390.9,2389.6,1.6193]
[1642968362049,0.44369994,2390.9,2389.3,4.0763]
[1642968362248,0.44369994,2390.9,2389.3,3.909]
[1642968362447,0.44369994,2390.9,2389.3,6.85176074]
[1642968362854,0.44369994,2390.9,2389.3,28.08263497]
[1642968363048,2.24915146,2390.8,2389.3,3.98263497]
[1642968363254,2.24915146,2390.8,2389.2,3.53191898]
[1642968363255,2.42098158,2390.8,2389.2,2.47304]
[1642968363454,0.1673,2390.7,2389.2,2.47304]
[1642968363657,0.1673,2390.7,2389.2,2.26094]
[1642968364395,1.17155526,2389.8,2389.2,2.26094]
[1642968364597,1.17155526,2389.8,2389.3,0.3]
[1642968365402,0.1673,2390.5,2389.3,0.3]
[1642968365598,0.1673,2390.6,2389.3,1.4673]
[1642968366096,0.1673,2390.8,2389.3,1.4673]
[1642968366297,1.45755067,2390.2,2389.3,1.4673]
[1642968366500,0.1673,2390.8,2389.3,1.4673]
[1642968366699,0.1673,2390.8,2389.4,1.04681]
[1642968366900,2.5255514,2390.9,2389.5,0.1673]
[1642968367099,2.5255514,2390.9,2389.5,0.7673]
[1642968367299,0.27639994,2390.9,2389.5,0.7673]
[1642968367500,0.27639994,2390.9,2389.6,2.24915146]
[1642968367703,1.43799762,2390.9,2389.7,25.18957649]
[1642968367905,1.43799762,2390.9,2389.8,1.04667]
[1642968368152,1.43799762,2390.9,2389.8,3.38127]
[1642968368349,1.43799762,2390.9,2389.8,3.45490497]
[1642968368554,0.1673,2391.3,2389.9,0.37363497]
[1642968368755,1.1934,2391.7,2390.0,27.89065146]
[1642968368756,0.86188878,2391.7,2390.0,27.89065146]
[1642968368951,0.00270504,2391.8,2390.4,0.01283852]
[1642968369157,0.01227174,2392.1,2390.4,1.1929]
[1642968369558,17.7531,2392.2,2390.4,1.1929]
[1642968369559,1.36520344,2391.4,2390.4,1.1929]
[1642968369752,1.36520344,2391.4,2390.4,1.4929]
[1642968369954,0.77417482,2390.7,2390.4,1.1929]
[1642968370159,0.77417482,2390.7,2389.4,1.2404]
[1642968370352,0.77417482,2390.7,2389.3,9.01846613]
[1642968370753,0.80497078,2389.9,2389.5,1.6413566]
[1642968370958,1.2141581,2390.4,2389.2,1.04688]
[1642968371153,0.03987952,2390.3,2389.2,1.04688]
[1642968371353,0.1673,2390.2,2389.2,1.04688]
[1642968371554,0.1673,2390.3,2388.9,0.17999754]
[1642968371815,0.1673,2390.3,2388.8,8.47704]
[1642968371816,1.11431518,2389.4,2388.8,7.43]
[1642968373107,1.17000504,2390.3,2388.7,1.047116]
[1642968373303,0.1673,2390.3,2388.8,2.92168137]
[1642968373506,0.1673,2390.3,2388.9,4.1876331]
[1642968373702,0.13819997,2390.6,2389.1,0.00865443]
[1642968373903,0.13819997,2390.6,2389.4,1.04683]
[1642968374105,0.13819997,2390.6,2389.6,1.13243426]
[1642968374406,0.13819997,2390.7,2389.6,1.13243426]
[1642968374704,0.13819997,2390.7,2389.7,0.24093234]
[1642968374903,0.13819997,2390.7,2389.7,0.19093234]
[1642968375103,0.13819997,2390.7,2389.8,0.05]
[1642968375544,0.13819997,2390.7,2389.8,0.07363234]
[1642968375946,0.01285581,2391.0,2389.8,1.12030234]
[1642968376150,0.17453516,2391.5,2389.8,1.12030234]
[1642968376151,0.00270504,2391.5,2389.9,0.4673]
[1642968376352,0.00270504,2391.5,2389.9,1.60373234]
[1642968376560,0.17157066,2391.6,2390.1,0.00600912]
[1642968376753,0.17157066,2391.6,2390.1,0.47330912]
[1642968377056,1.33822916,2391.2,2390.1,1.4673]
[1642968377254,1.33822916,2391.2,2390.1,0.7673]
[1642968377654,0.80082165,2391.5,2390.1,1.7673]
[1642968377856,0.80082165,2391.5,2390.2,1.0465]
[1642968378055,0.80082165,2391.5,2390.3,0.3]
[1642968378263,0.80082165,2391.5,2390.3,0.855]
[1642968378457,0.01220352,2391.6,2390.4,2.95277798]
[1642968378657,1.16523401,2391.4,2390.4,1.795]
[1642968379059,1.16523401,2391.4,2390.4,4.74620317]
[1642968379492,0.83354099,2391.1,2390.4,1.795]
[1642968379792,1.16523401,2391.4,2390.3,0.3]
[1642968379793,1.16523401,2391.4,2390.3,0.6]
[1642968379997,1.16523401,2391.4,2390.3,1.8839]
[1642968380200,0.01220352,2391.6,2390.4,2.8598527]
[1642968380401,0.1673,2391.9,2390.4,2.8598527]
[1642968380606,0.1671,2392.0,2390.6,1.04633]
[1642968380906,0.8206227,2391.9,2390.7,0.6]
[1642968381100,0.8206227,2391.9,2390.8,3.15168515]
[1642968381500,1.4633529,2391.8,2390.8,3.15168515]
[1642968381699,0.04035807,2391.9,2390.8,3.15168515]
[1642968381902,0.04035807,2391.9,2391.0,0.01670874]
[1642968382099,0.04035807,2391.9,2390.9,1.8962]
[1642968382300,0.04035807,2391.9,2391.0,0.3]
[1642968382502,0.04035807,2391.9,2391.0,3.43984536]
[1642968382704,0.2071,2392.3,2391.3,7.7]
[1642968382906,0.04,2392.3,2391.4,0.1671]
[1642968383747,0.74923861,2392.3,2391.7,0.80934982]
[1642968383947,0.74923861,2392.3,2391.5,1.04596]
[1642968384147,0.74923861,2392.3,2391.5,1.93056]
[1642968384348,0.74923861,2392.3,2391.5,0.2846]
[1642968384549,0.74923861,2392.3,2391.4,0.4671]
[1642968384748,0.74923861,2392.3,2390.9,0.1671]
[1642968384749,0.91633861,2392.3,2390.9,0.1671]
[1642968384949,0.68467539,2391.8,2390.8,6.79889]
[1642968385149,0.68467539,2391.8,2390.8,4.35139]
[1642968385351,1.28220155,2391.8,2390.8,4.35139]
[1642968385549,1.28220155,2391.8,2390.8,7.3698798]
[1642968385749,0.2071,2392.3,2390.8,7.3698798]
[1642968385950,0.04,2392.3,2391.2,1.04609]
[1642968386159,0.04,2392.3,2391.3,3.41943236]
[1642968386549,0.9021262,2392.3,2391.7,0.87665441]
[1642968386811,1.25716668,2392.5,2391.7,0.3]
[1642968387001,1.25716668,2392.5,2391.3,3.25233236]
[1642968387198,1.10716668,2392.5,2391.2,2.8588938]
[1642968387398,1.10716668,2392.5,2391.2,0.7671]
[1642968387699,0.35121598,2392.4,2390.8,4.18429]
[1642968388000,1.3557645,2391.5,2390.9,0.72258817]
[1642968388202,0.35121598,2392.4,2390.9,0.72258817]
[1642968388503,0.3566295,2392.4,2390.9,0.72258817]
[1642968388706,0.37130357,2392.4,2390.9,0.72258817]
[1642968388903,0.36859707,2392.4,2390.9,0.72258817]
[1642968389105,0.88739025,2391.6,2390.9,0.72258817]
[1642968389605,0.88739025,2391.6,2390.6,0.17993209]
[1642968389906,0.05825693,2391.5,2390.5,0.1671]
[1642968390107,1.22205796,2390.6,2390.2,0.1671]
[1642968390309,0.01299468,2391.3,2390.1,0.1673]
[1642968390571,0.2199811,2391.2,2389.6,0.1673]
[1642968390765,0.70235135,2390.7,2390.1,0.75919473]
[1642968391167,7.28181558,2391.7,2390.1,0.75919473]
[1642968391168,0.20907,2391.5,2390.1,3.05036509]
[1642968391382,0.0027065,2391.6,2391.2,0.01255183]
[1642968391569,0.0027065,2391.6,2391.3,0.1671]
[1642968391769,1.1776782,2391.7,2391.3,0.1671]
[1642968391966,1.1776782,2391.7,2391.2,1.75103345]
[1642968392166,0.01738109,2392.4,2391.3,0.87572214]
[1642968393070,0.01738109,2392.4,2390.9,0.33888]
[1642968393071,0.20907,2392.3,2390.9,0.63888]
[1642968393276,1.45508289,2391.3,2390.9,0.1671]
[1642968393980,0.83222983,2391.1,2390.9,0.1671]
[1642968394173,1.45508289,2391.3,2390.9,0.1671]
[1642968394608,1.45508289,2391.3,2390.0,33.64077]
[1642968394813,0.1673,2391.2,2390.0,33.64077]
[1642968395008,1.45508289,2391.3,2390.2,2.0930353]
[1642968395211,0.00267341,2391.6,2390.3,0.33908]
[1642968395411,0.00267341,2391.6,2391.5,0.69558358]
[1642968395612,0.00267341,2391.6,2391.5,1.75576358]
[1642968395807,0.00267341,2391.6,2391.5,1.88398358]
[1642968396007,0.00267341,2391.6,2391.5,2.46168358]
[1642968396219,0.00267341,2391.6,2391.5,7.61168358]
[1642968396618,0.00267341,2391.6,2391.5,7.78346358]
[1642968396815,0.03318987,2392.3,2391.6,5.05]
[1642968397017,0.03318987,2392.3,2391.7,1.17178]
[1642968397215,0.03318987,2392.3,2391.8,3.34253453]
[1642968397416,0.03318987,2392.3,2391.9,0.1671]
[1642968397615,0.03318987,2392.3,2391.9,1.33888]
[1642968397818,0.03318987,2392.3,2392.1,0.90806464]
[1642968398043,0.03318987,2392.3,2392.1,2.61746464]
[1642968398246,0.03318987,2392.3,2392.1,2.31746464]
[1642968398447,0.03318987,2392.3,2392.1,3.61746464]
[1642968398651,0.0027065,2393.3,2392.3,7.7]
[1642968398652,0.1698065,2393.3,2392.3,7.7]
[1642968398850,0.1671,2393.6,2393.0,0.93834582]
[1642968399050,1.43225056,2393.7,2393.0,1.68614649]
[1642968399051,0.04,2393.7,2393.0,1.68614649]
[1642968399448,0.04,2393.7,2393.1,0.66678]
[1642968399651,0.04,2393.7,2393.2,36.21107573]
[1642968399849,0.04,2393.7,2393.4,0.66889906]
[1642968400048,0.04,2393.7,2393.5,0.495]
[1642968400450,0.04,2393.7,2393.6,7.62178]
[1642968400648,0.04,2393.7,2393.6,8.41678]
[1642968400846,0.04,2393.7,2393.6,8.245]
[1642968401047,0.04,2393.7,2393.6,0.795]
[1642968401251,0.04,2393.7,2393.6,4.795]
[1642968402796,0.04,2393.7,2393.6,4.96678]
[1642968402998,0.04,2393.7,2393.6,6.1312]
[1642968403199,0.01215955,2394.8,2393.7,4.6]
[1642968403601,0.01215955,2394.8,2393.7,4.85605]
[1642968403800,1.98642385,2394.4,2393.7,4.85605]
[1642968404000,1.26158777,2394.4,2393.8,0.3]
[1642968404198,0.01215955,2394.8,2393.8,0.3]
[1642968404599,0.01215955,2394.8,2393.9,0.66678]
[1642968404800,0.01215955,2394.8,2393.9,0.795]
[1642968404999,0.86382369,2394.6,2394.0,0.6792724]
[1642968405201,1.10764995,2394.8,2394.0,0.6792724]
[1642968405400,1.10764995,2394.8,2393.9,0.99943]
[1642968405644,1.0954904,2394.8,2393.9,0.7506]
[1642968405843,1.0954904,2394.8,2393.9,0.66678]
[1642968406445,0.78162071,2394.7,2394.1,0.85936487]
[1642968406644,1.0954904,2394.8,2393.9,1.66678]
[1642968406844,1.0954904,2394.8,2393.9,0.66678]
[1642968407052,1.0954904,2394.8,2393.9,1.66678]
[1642968407244,1.0954904,2394.8,2393.9,1.26678]
[1642968407245,1.0454904,2394.8,2393.9,1.26678]
[1642968407444,1.0454904,2394.8,2393.9,2.18608]
[1642968407946,1.0454904,2394.8,2393.9,1.18608]
[1642968408149,1.0454904,2394.8,2393.9,2.18608]
[1642968408548,1.0454904,2394.8,2393.9,1.96678]
[1642968408748,0.44339994,2395.2,2393.9,1.96678]
[1642968408955,4.18083,2396.5,2393.9,1.96678]
[1642968408956,1.0,2395.7,2394.1,0.01251212]
[1642968409154,0.0027065,2395.8,2395.0,0.84549477]
[1642968409397,0.0027065,2395.8,2395.1,0.67472918]
[1642968409599,0.01205948,2396.2,2395.1,1.27472918]
[1642968409796,0.1668,2396.6,2395.1,1.27472918]
[1642968409797,0.1668,2396.6,2395.1,2.27472918]
[1642968410194,0.88379383,2396.1,2395.1,2.26678]
[1642968410393,0.88379383,2396.1,2395.1,1.095]
[1642968410594,0.1668,2396.4,2395.2,0.17178]
[1642968410796,3.92370676,2396.8,2395.3,0.52345516]
[1642968410797,0.18181326,2396.8,2395.3,0.52345516]
[1642968410995,0.01501326,2396.8,2395.3,0.82345516]
[1642968411195,0.01501326,2396.8,2395.3,0.3]
[1642968411395,1.97526964,2396.2,2395.5,0.83796132]
[1642968411696,1.97526964,2396.2,2395.6,0.66678]
[1642968411894,1.14694974,2396.2,2395.6,0.96678]
[1642968412101,0.01230676,2396.8,2395.6,2.4264087]
[1642968412297,0.0027065,2397.0,2395.6,2.4264087]
[1642968412503,0.1668,2397.1,2395.7,0.3]
[1642968412706,0.1668,2397.1,2395.8,2.9419592]
[1642968413062,0.82999063,2396.8,2396.2,0.31621608]
[1642968413266,0.82999063,2396.8,2396.3,0.495]
[1642968413465,0.0027065,2397.6,2396.4,0.17178]
[1642968413667,0.13204421,2398.3,2396.6,7.7]
[1642968413865,0.01276657,2398.4,2396.7,0.67939612]
[1642968414066,0.01276657,2398.4,2396.7,2.62789612]
[1642968414067,0.1668,2398.3,2396.7,2.62789612]
[1642968414462,0.87135005,2397.2,2396.7,2.62789612]
[1642968414669,0.1668,2398.3,2396.7,2.56528]
[1642968414865,0.07956657,2398.6,2396.8,7.7]
[1642968415065,0.07956657,2398.6,2396.9,1.495]
[1642968415463,0.07956657,2398.6,2397.0,0.12178]
[1642968415667,0.07956657,2398.6,2396.9,1.055]
[1642968415668,1.48788263,2398.5,2397.1,0.61678]
[1642968415870,0.27639994,2398.7,2397.3,1.04335]
[1642968416068,1.1549,2399.4,2397.3,1.04335]
[1642968416069,0.1668,2399.3,2397.6,0.0471398]
[1642968416270,0.1168,2399.3,2397.8,0.03744032]
[1642968416472,0.04206333,2399.3,2398.1,0.01207272]
[1642968416670,0.67002541,2400.2,2399.7,0.90400425]
[1642968416911,1.35955589,2400.1,2399.8,0.15079761]
[1642968417116,0.01287563,2401.2,2399.8,0.15079761]
[1642968417117,0.20907,2400.7,2399.8,0.15079761]
[1642968417416,0.1666,2400.6,2398.9,1.0427248]
[1642968417613,0.37567,2399.9,2398.9,0.495]
[1642968417809,0.32567,2399.9,2398.3,0.495]
[1642968418012,1.28240754,2398.8,2398.3,0.495]
[1642968418418,0.1666,2398.7,2397.9,0.495]
[1642968418618,1.28240754,2398.8,2398.2,0.495]
[1642968418817,1.28240754,2398.8,2397.7,0.1666]
[1642968419021,0.41659666,2398.7,2397.7,0.1666]
[1642968419217,0.58319666,2398.7,2397.7,0.1666]
[1642968419419,0.68090169,2397.8,2397.3,3.5]
[1642968419617,0.68090169,2397.8,2397.2,0.12178]
[1642968420037,0.1666,2398.7,2397.2,0.12178]
[1642968420217,0.1666,2398.7,2397.3,0.495]
[1642968420644,1.50520534,2397.9,2397.3,0.495]
[1642968420848,2.75736371,2398.7,2397.3,0.495]
[1642968420849,0.1666,2398.7,2397.4,0.99645551]
[1642968421050,0.13819997,2398.9,2398.2,0.2832]
[1642968421051,0.93058472,2398.9,2398.2,0.2832]
[1642968421251,0.1668,2399.5,2398.3,0.50272606]
[1642968421449,2.26266566,2399.6,2398.3,0.495]
[1642968421450,2.42926566,2399.6,2398.3,0.495]
[1642968421648,0.1666,2399.8,2398.4,0.12178]
[1642968421848,1.19415627,2399.4,2398.5,0.495]
[1642968422454,1.19415627,2399.4,2398.5,0.795]
[1642968422657,0.1666,2399.7,2398.5,0.795]
[1642968422858,0.20262401,2399.9,2398.6,0.12178]
[1642968423055,0.20262401,2399.9,2398.7,0.495]
[1642968423253,0.03602401,2399.9,2398.8,0.28838]
[1642968423453,0.03327031,2399.9,2399.3,0.05964193]
[1642968423657,0.0526998,2400.0,2399.3,2.41554623]
[1642968423855,0.0526998,2400.0,2399.4,4.20928592]
[1642968424054,0.0526998,2400.0,2399.5,0.495]
[1642968424500,0.0526998,2400.0,2399.5,0.795]
[1642968424703,0.0526998,2400.0,2399.5,0.495]
[1642968424704,0.89704015,2399.9,2399.5,0.495]
[1642968425005,0.89704015,2399.9,2399.0,0.495]
[1642968425211,0.89704015,2399.9,2398.8,0.1666]
[1642968425212,1.17260615,2399.2,2398.8,0.1666]
[1642968425400,1.17260615,2399.2,2398.3,0.495]
[1642968425601,0.37567,2399.8,2398.3,4.11678]
[1642968425799,0.37567,2399.8,2398.4,0.1666]
[1642968425800,0.1666,2399.8,2398.4,0.1666]
[1642968426000,0.1666,2399.9,2398.5,0.12178]
[1642968426206,0.1166,2399.9,2398.6,0.6616]
[1642968426399,0.0526998,2400.0,2398.7,0.12178]
[1642968426599,1.16233897,2399.9,2398.8,0.495]
[1642968426802,1.16233897,2399.9,2398.9,0.12178]
[1642968426999,1.16233897,2399.9,2399.3,1.09826701]
[1642968427000,0.90014027,2399.9,2399.3,1.09826701]
[1642968427200,0.0526998,2400.0,2399.3,1.29326701]
[1642968427403,0.0526998,2400.0,2398.9,0.1666]
[1642968427404,0.2617698,2400.0,2398.9,0.1666]
[1642968427602,0.1666,2399.9,2398.4,2.0856527]
[1642968427806,0.1666,2399.9,2398.5,0.3]
[1642968428255,0.87590441,2399.0,2398.5,0.3]
[1642968428455,2.38212906,2399.0,2398.5,0.3]
[1642968428655,2.38212906,2399.0,2398.3,0.495]
[1642968428858,2.38212906,2399.0,2398.2,0.1666]
[1642968429459,0.1667,2402.1,2399.1,3.78440216]
[1642968429661,0.1667,2402.1,2400.3,0.01844263]
[1642968429860,1.95016689,2402.3,2401.1,0.01267552]
[1642968430060,4.002,2402.7,2401.1,0.01267552]
[1642968430061,2.26266566,2402.5,2401.2,0.495]
[1642968430259,2.26266566,2402.5,2401.1,0.9251]
[1642968430260,0.0866,2402.5,2401.1,0.9251]
[1642968430462,0.90474022,2401.4,2401.1,0.9251]
[1642968430959,0.90474022,2401.4,2400.4,0.01209437]
[1642968431160,0.90474022,2401.4,2399.8,1.01277096]
[1642968431357,0.0866,2401.3,2399.8,0.01277096]
[1642968431561,0.0866,2401.3,2399.8,0.79826701]
[1642968431824,2.40086563,2401.5,2399.8,0.79826701]
[1642968431825,1.22794154,2401.0,2399.9,0.20848]
[1642968432007,0.13819997,2401.5,2400.3,0.01211741]
[1642968432409,0.08819997,2401.5,2400.3,0.01211741]
[1642968432612,0.71250473,2401.1,2400.3,0.01211741]
[1642968432809,0.08819997,2401.5,2400.3,0.01211741]
[1642968433015,1.49830346,2401.5,2400.3,5.07982066]
[1642968433215,0.1666,2401.6,2400.3,5.07982066]
[1642968433415,0.007,2402.1,2400.4,1.1666]
[1642968433715,0.72447702,2401.8,2400.5,0.70348]
[1642968433916,0.007,2402.1,2400.5,3.75404766]
[1642968434119,0.007,2402.1,2401.0,2.0832776]
[1642968434318,0.007,2402.1,2401.2,0.0232252]
[1642968434514,0.007,2402.1,2401.3,0.495]
[1642968434917,0.70268381,2402.1,2401.4,0.1665]
[1642968435314,0.007,2402.1,2401.4,0.1665]
[1642968435555,0.007,2402.1,2401.4,1.4665]
[1642968435852,0.007,2402.1,2401.5,0.495]
[1642968436058,0.007,2402.1,2401.4,0.1665]
[1642968436059,0.1613,2402.0,2401.4,0.1665]
[1642968436254,2.04302387,2401.9,2401.4,0.1665]
[1642968436457,2.04302387,2401.9,2400.0,5.11688]
[1642968436458,0.1595,2401.8,2400.0,5.11688]
[1642968436658,0.0866,2401.7,2400.0,5.11688]
[1642968436858,0.1577,2401.6,2400.1,3.5]
[1642968437056,0.1577,2401.6,2400.0,4.95038]
[1642968437257,0.0866,2401.5,2400.0,5.11698]
[1642968437459,2.33354331,2401.8,2400.0,4.95038]
[1642968437460,0.154,2401.4,2400.0,4.95038]
[1642968437659,3.42014331,2401.8,2400.0,1.61698]
[1642968437660,0.84263059,2400.6,2400.0,1.61698]
[1642968437860,0.15490005,2401.7,2400.0,0.20848]
[1642968438067,0.15490005,2401.7,2400.4,0.0123333]
[1642968438259,0.15490005,2401.7,2400.5,0.86998]
[1642968438260,0.00270005,2401.7,2400.5,0.86998]
[1642968438457,0.08819997,2401.8,2400.5,0.6615]
[1642968438660,0.1665,2401.7,2400.5,0.495]
[1642968438960,0.1665,2401.7,2400.3,0.1665]
[1642968438961,1.2947289,2401.1,2400.3,0.1665]
[1642968440002,0.08819997,2401.8,2400.3,0.1665]
[1642968440003,0.77092809,2400.4,2400.3,0.1665]
[1642968440610,1.11345221,2400.5,2400.3,0.1665]
[1642968440804,0.1666,2401.1,2400.3,0.1665]
[1642968441010,0.1666,2401.1,2399.9,0.04999999]
[1642968441205,0.0866,2401.4,2399.9,0.04999999]
[1642968441407,0.1666,2401.5,2400.3,0.01276078]
[1642968441603,0.00270005,2401.7,2400.4,0.37508]
[1642968441805,0.00270005,2401.7,2401.3,0.75540995]
[1642968442004,0.08819997,2401.8,2401.3,1.51650995]
[1642968442401,0.007,2402.1,2401.3,1.51650995]
[1642968442903,0.007,2402.1,2401.7,0.04285706]
[1642968443158,0.007,2402.1,2400.9,1.01223387]
[1642968443353,0.007,2402.1,2401.0,0.3]
[1642968443753,0.1665,2402.5,2401.0,7.95848]
[1642968443955,0.0665,2402.5,2401.0,10.839838]
[1642968444153,0.0665,2402.5,2401.1,1.0]
[1642968444352,0.0665,2402.5,2401.0,10.631358]
[1642968444555,1.33266906,2402.1,2401.1,1.0]
[1642968444956,0.2531,2402.6,2401.6,0.70595689]
[1642968445953,2.09594043,2402.1,2401.6,0.70595689]
[1642968446155,2.09594043,2402.1,2401.1,0.495]
[1642968446655,2.09594043,2402.1,2400.5,2.083906]
[1642968446656,2.09594043,2402.1,2400.6,0.1665]
[1642968446919,0.1665,2402.0,2400.4,0.495]
[1642968447113,0.03964037,2401.9,2400.4,0.495]
[1642968447312,0.2531,2402.0,2400.4,0.495]
[1642968447313,0.2531,2402.0,2400.8,0.83363848]
[1642968447513,1.14610512,2401.6,2400.8,0.83363848]
[1642968447914,1.14610512,2401.6,2400.8,1.13363848]
[1642968448114,1.14610512,2401.6,2400.8,1.64211848]
[1642968448318,0.92745945,2401.9,2400.8,0.83363848]
[1642968448515,0.1270389,2401.5,2400.8,0.83363848]
[1642968449115,0.1070389,2401.5,2400.8,0.83363848]
[1642968449315,1.50170667,2401.3,2400.6,0.01245626]
[1642968450319,1.50170667,2401.3,2400.3,1.2615]
[1642968450320,0.86372567,2400.9,2400.3,0.94754417]
[1642968450564,0.86372567,2400.9,2399.9,0.04999999]